[Event "January 2 Early 2024"]
[Site "https://www.chess.com"]
[Date "2024.01.02"]
[Round "10"]
[White "Novak, Ratko"]
[Black "Hajiyev, Kanan"]
[Result "0-1"]
[Board "76"]
[TimeControl "180+1"]
[WhiteFideId "14511827"]
[BlackFideId "13404148"]
[WhiteElo "2395"]
[BlackElo "2619"]
[WhiteTeam "CRO"]
[BlackTeam "AZE"]
[WhiteClock "0:00:01"]
[BlackClock "0:01:57"]

1. d4 {[%clk 0:03:00]}  d5 {[%clk 0:02:55]} 2. c4 {[%clk 0:03:01]}  c6 {[%clk 0:02:56]} 3. cxd5 {[%clk 0:03:01]}  cxd5 {[%clk 0:02:57]} 4. Nc3 {[%clk 0:03:02]}  Nf6 {[%clk 0:02:58]} 5. f3 {[%clk 0:03:02]}  a6 {[%clk 0:02:59]} 6. e4 {[%clk 0:03:03]}  e6 {[%clk 0:02:57]} 7. e5 {[%clk 0:03:03]}  Nfd7 {[%clk 0:02:58]} 8. f4 {[%clk 0:03:04]}  Nc6 {[%clk 0:02:58]} 9. Nf3 {[%clk 0:03:04]}  f6 {[%clk 0:02:58]} 10. Be3 {[%clk 0:02:57]}  Qb6 {[%clk 0:02:58]} 11. Qd2 {[%clk 0:02:56]}  Bb4 {[%clk 0:02:54]} 12. a3 {[%clk 0:02:54]}  Qa5 {[%clk 0:02:54]} 13. Bd3 {[%clk 0:02:47]}  O-O {[%clk 0:02:44]} 14. O-O {[%clk 0:02:41]}  Bxc3 {[%clk 0:02:43]} 15. bxc3 {[%clk 0:02:41]}  f5 {[%clk 0:02:40]} 16. c4 {[%clk 0:02:33]}  Qxd2 {[%clk 0:02:40]} 17. Nxd2 {[%clk 0:02:33]}  dxc4 {[%clk 0:02:40]} 18. Bxc4 {[%clk 0:02:33]}  Nb6 {[%clk 0:02:41]} 19. Ba2 {[%clk 0:02:31]}  Rd8 {[%clk 0:02:41]} 20. Nf3 {[%clk 0:02:30]}  Nd5 {[%clk 0:02:40]} 21. Bd2 {[%clk 0:02:27]}  Bd7 {[%clk 0:02:34]} 22. a4 {[%clk 0:02:26]}  Nce7 {[%clk 0:02:29]} 23. Rfb1 {[%clk 0:02:23]}  Bc6 {[%clk 0:02:29]} 24. a5 {[%clk 0:02:22]}  h6 {[%clk 0:02:28]} 25. Kf2 {[%clk 0:02:14]}  Kf7 {[%clk 0:02:28]} 26. h4 {[%clk 0:02:14]}  g6 {[%clk 0:02:28]} 27. g3 {[%clk 0:02:14]}  Rac8 {[%clk 0:02:27]} 28. Rb2 {[%clk 0:02:12]}  Rc7 {[%clk 0:02:28]} 29. Rab1 {[%clk 0:02:12]}  Rcd7 {[%clk 0:02:28]} 30. Bb3 {[%clk 0:01:34]}  Bb5 {[%clk 0:02:23]} 31. Ra1 {[%clk 0:01:30]}  Nc6 {[%clk 0:02:23]} 32. Ba4 {[%clk 0:01:28]}  Bxa4 {[%clk 0:02:15]} 33. Rxa4 {[%clk 0:01:28]}  Na7 {[%clk 0:02:09]} 34. Ra3 {[%clk 0:01:20]}  Nb5 {[%clk 0:02:09]} 35. Rab3 {[%clk 0:01:21]}  Ne7 {[%clk 0:02:07]} 36. Be3 {[%clk 0:01:19]}  Nc6 {[%clk 0:02:06]} 37. Rxb5 {[%clk 0:01:15]}  axb5 {[%clk 0:02:07]} 38. Rxb5 {[%clk 0:01:16]}  Ra8 {[%clk 0:02:07]} 39. Bd2 {[%clk 0:00:53]}  Ra7 {[%clk 0:02:04]} 40. Bc3 {[%clk 0:00:53]}  Rd5 {[%clk 0:02:05]} 41. Rb1 {[%clk 0:00:42]}  Nxa5 {[%clk 0:02:05]} 42. Nd2 {[%clk 0:00:34]}  b5 {[%clk 0:02:01]} 43. Ke3 {[%clk 0:00:26]}  Nc4+ {[%clk 0:02:01]} 44. Nxc4 {[%clk 0:00:19]}  bxc4 {[%clk 0:02:02]} 45. Bb4 {[%clk 0:00:17]}  Rb7 {[%clk 0:01:58]} 46. Rb2 {[%clk 0:00:01]}  Rdb5 {[%clk 0:01:57]} 0-1

[Event "January 2 Early 2024"]
[Site "https://www.chess.com"]
[Date "2024.01.02"]
[Round "10"]
[White "Baches Garcia, Guillermo"]
[Black "Manolache, Marius"]
[Result "1/2-1/2"]
[Board "79"]
[TimeControl "180+1"]
[WhiteFideId "2209764"]
[BlackFideId "1201530"]
[WhiteElo "2514"]
[BlackElo "2676"]
[WhiteTeam "ESP"]
[BlackTeam "ROU"]
[WhiteClock "0:02:31"]
[BlackClock "0:02:15"]

1. d4 {[%clk 0:03:00]}  Nf6 {[%clk 0:02:59]} 2. Nf3 {[%clk 0:03:01]}  e6 {[%clk 0:02:59]} 3. Bg5 {[%clk 0:03:02]}  c5 {[%clk 0:02:58]} 4. e3 {[%clk 0:03:01]}  Be7 {[%clk 0:02:58]} 5. Nbd2 {[%clk 0:03:01]}  cxd4 {[%clk 0:02:58]} 6. exd4 {[%clk 0:03:01]}  h6 {[%clk 0:02:56]} 7. Bh4 {[%clk 0:03:01]}  d5 {[%clk 0:02:54]} 8. Bd3 {[%clk 0:02:59]}  Nc6 {[%clk 0:02:54]} 9. c3 {[%clk 0:02:59]}  Qb6 {[%clk 0:02:51]} 10. Rb1 {[%clk 0:02:57]}  a5 {[%clk 0:02:50]} 11. O-O {[%clk 0:02:57]}  a4 {[%clk 0:02:47]} 12. a3 {[%clk 0:02:54]}  Bd7 {[%clk 0:02:38]} 13. Qe2 {[%clk 0:02:52]}  Qd8 {[%clk 0:02:37]} 14. Rfe1 {[%clk 0:02:48]}  O-O {[%clk 0:02:36]} 15. h3 {[%clk 0:02:41]}  Re8 {[%clk 0:02:36]} 16. Bg3 {[%clk 0:02:37]}  Bf8 {[%clk 0:02:23]} 17. Bh4 {[%clk 0:02:31]}  Be7 {[%clk 0:02:22]} 18. Bg3 {[%clk 0:02:31]}  Bf8 {[%clk 0:02:22]} 19. Bh4 {[%clk 0:02:31]}  Be7 {[%clk 0:02:15]} 1/2-1/2

[Event "January 2 Early 2024"]
[Site "https://www.chess.com"]
[Date "2024.01.02"]
[Round "10"]
[White "Skliarov, Viktor"]
[Black "Korpics, Zsolt"]
[Result "1/2-1/2"]
[Board "81"]
[TimeControl "180+1"]
[WhiteFideId "14106736"]
[BlackFideId "705241"]
[WhiteElo "2649"]
[BlackElo "2502"]
[WhiteTeam "UKR"]
[BlackTeam "HUN"]
[WhiteClock "0:00:12"]
[BlackClock "0:00:14"]

1. e4 {[%clk 0:03:00]}  c5 {[%clk 0:02:59]} 2. Nf3 {[%clk 0:03:00]}  e6 {[%clk 0:03:00]} 3. c3 {[%clk 0:02:59]}  Nf6 {[%clk 0:02:59]} 4. Bd3 {[%clk 0:02:58]}  Nc6 {[%clk 0:02:52]} 5. O-O {[%clk 0:02:56]}  e5 {[%clk 0:02:50]} 6. Bc2 {[%clk 0:02:54]}  d6 {[%clk 0:02:48]} 7. h3 {[%clk 0:02:50]}  Be7 {[%clk 0:02:44]} 8. d4 {[%clk 0:02:47]}  cxd4 {[%clk 0:02:44]} 9. cxd4 {[%clk 0:02:46]}  O-O {[%clk 0:02:44]} 10. a3 {[%clk 0:02:44]}  exd4 {[%clk 0:02:13]} 11. Nxd4 {[%clk 0:02:43]}  Nxd4 {[%clk 0:02:13]} 12. Qxd4 {[%clk 0:02:42]}  Be6 {[%clk 0:02:14]} 13. Nc3 {[%clk 0:02:40]}  a6 {[%clk 0:02:08]} 14. Bf4 {[%clk 0:02:31]}  Ne8 {[%clk 0:01:48]} 15. Rad1 {[%clk 0:02:28]}  Bf6 {[%clk 0:01:43]} 16. Qd2 {[%clk 0:02:00]}  Rc8 {[%clk 0:01:39]} 17. Bb1 {[%clk 0:01:52]}  Qa5 {[%clk 0:01:37]} 18. Nd5 {[%clk 0:01:36]}  Qxd2 {[%clk 0:01:28]} 19. Nxf6+ {[%clk 0:01:36]}  Nxf6 {[%clk 0:01:20]} 20. Rxd2 {[%clk 0:01:36]}  d5 {[%clk 0:01:12]} 21. exd5 {[%clk 0:01:23]}  Nxd5 {[%clk 0:01:12]} 22. Bg3 {[%clk 0:01:23]}  Nb6 {[%clk 0:01:09]} 23. Be4 {[%clk 0:01:11]}  Nc4 {[%clk 0:01:07]} 24. Re2 {[%clk 0:01:07]}  Na5 {[%clk 0:00:48]} 25. Rd1 {[%clk 0:01:00]}  Nc6 {[%clk 0:00:42]} 26. Bf3 {[%clk 0:00:50]}  Rfd8 {[%clk 0:00:39]} 27. Red2 {[%clk 0:00:50]}  Rxd2 {[%clk 0:00:38]} 28. Rxd2 {[%clk 0:00:51]}  Rd8 {[%clk 0:00:35]} 29. Rxd8+ {[%clk 0:00:46]}  Nxd8 {[%clk 0:00:35]} 30. Bc7 {[%clk 0:00:41]}  Nc6 {[%clk 0:00:35]} 31. Bb6 {[%clk 0:00:42]}  Kf8 {[%clk 0:00:34]} 32. Kf1 {[%clk 0:00:41]}  Ke7 {[%clk 0:00:34]} 33. Ke2 {[%clk 0:00:41]}  Kd6 {[%clk 0:00:35]} 34. Be4 {[%clk 0:00:35]}  f5 {[%clk 0:00:31]} 35. Bc2 {[%clk 0:00:34]}  g6 {[%clk 0:00:31]} 36. f4 {[%clk 0:00:32]}  Bd5 {[%clk 0:00:28]} 37. g4 {[%clk 0:00:27]}  fxg4 {[%clk 0:00:16]} 38. hxg4 {[%clk 0:00:27]}  Be6 {[%clk 0:00:17]} 39. g5 {[%clk 0:00:22]}  Ne7 {[%clk 0:00:16]} 40. Bd4 {[%clk 0:00:17]}  Bf5 {[%clk 0:00:13]} 41. Be5+ {[%clk 0:00:16]}  Kd7 {[%clk 0:00:13]} 42. Bb3 {[%clk 0:00:15]}  Be6 {[%clk 0:00:13]} 43. Bc2 {[%clk 0:00:13]}  Bf5 {[%clk 0:00:13]} 44. Bb3 {[%clk 0:00:12]}  Be6 {[%clk 0:00:13]} 45. Bc2 {[%clk 0:00:12]}  Bf5 {[%clk 0:00:14]} 1/2-1/2

[Event "January 2 Early 2024"]
[Site "https://www.chess.com"]
[Date "2024.01.02"]
[Round "10"]
[White "Rozman, Levy"]
[Black "Gryshko, Vitalii"]
[Result "1-0"]
[Board "82"]
[TimeControl "180+1"]
[WhiteFideId "2039877"]
[BlackFideId "14174286"]
[WhiteElo "2645"]
[BlackElo "2501"]
[WhiteTeam "USA"]
[BlackTeam "UKR"]
[WhiteClock "0:00:31"]
[BlackClock "0:00:02"]

1. e4 {[%clk 0:02:55]}  e5 {[%clk 0:02:48]} 2. Nc3 {[%clk 0:02:55]}  Nf6 {[%clk 0:02:47]} 3. f4 {[%clk 0:02:55]}  d5 {[%clk 0:02:47]} 4. fxe5 {[%clk 0:02:55]}  Nxe4 {[%clk 0:02:47]} 5. Qf3 {[%clk 0:02:56]}  f5 {[%clk 0:02:45]} 6. d3 {[%clk 0:02:56]}  Nxc3 {[%clk 0:02:45]} 7. bxc3 {[%clk 0:02:57]}  d4 {[%clk 0:02:42]} 8. Qg3 {[%clk 0:02:57]}  dxc3 {[%clk 0:02:35]} 9. Be2 {[%clk 0:02:57]}  Be6 {[%clk 0:02:35]} 10. Rb1 {[%clk 0:02:56]}  Nc6 {[%clk 0:01:46]} 11. Rxb7 {[%clk 0:02:54]}  Nd4 {[%clk 0:01:43]} 12. Bd1 {[%clk 0:02:47]}  Be7 {[%clk 0:01:26]} 13. Qxg7 {[%clk 0:02:42]}  Rg8 {[%clk 0:01:25]} 14. Bh5+ {[%clk 0:02:42]}  Kd7 {[%clk 0:01:24]} 15. Qh6 {[%clk 0:02:29]}  Rxg2 {[%clk 0:00:55]} 16. Nf3 {[%clk 0:02:19]}  Bf8 {[%clk 0:00:11]} 17. Qf4 {[%clk 0:01:58]}  Nxc2+ {[%clk 0:00:09]} 18. Kf1 {[%clk 0:01:51]}  Kc8 {[%clk 0:00:08]} 19. Kxg2 {[%clk 0:01:42]}  Kxb7 {[%clk 0:00:08]} 20. Be3 {[%clk 0:01:33]}  Bd7 {[%clk 0:00:08]} 21. Rb1+ {[%clk 0:01:33]}  Kc8 {[%clk 0:00:07]} 22. Bf2 {[%clk 0:01:25]}  Na3 {[%clk 0:00:02]} 23. Rb3 {[%clk 0:01:21]}  c2 {[%clk 0:00:03]} 24. Bf7 {[%clk 0:01:06]}  Qe7 {[%clk 0:00:02]} 25. Bd5 {[%clk 0:01:01]}  Rb8 {[%clk 0:00:02]} 26. Rc3 {[%clk 0:00:43]}  Qb4 {[%clk 0:00:02]} 27. Bd4 {[%clk 0:00:38]}  Nb1 {[%clk 0:00:02]} 28. Rxc2 {[%clk 0:00:35]}  Na3 {[%clk 0:00:03]} 29. Rc1 {[%clk 0:00:32]}  Nb5 {[%clk 0:00:02]} 30. e6 {[%clk 0:00:31]}  Nxd4 {[%clk 0:00:02]} 31. exd7+ {[%clk 0:00:31]}  Kxd7 {[%clk 0:00:03]} 32. Qxc7+ {[%clk 0:00:30]}  Ke8 {[%clk 0:00:02]} 33. Bf7# {[%clk 0:00:31]} 1-0

[Event "January 2 Early 2024"]
[Site "https://www.chess.com"]
[Date "2024.01.02"]
[Round "10"]
[White "Estrada Nieto, Julian"]
[Black "Bartel, Michal"]
[Result "0-1"]
[Board "83"]
[TimeControl "180+1"]
[WhiteFideId "5101018"]
[BlackFideId "1119257"]
[WhiteElo "2497"]
[BlackElo "2629"]
[WhiteTeam "ESP"]
[BlackTeam "POL"]
[WhiteClock "0:00:41"]
[BlackClock "0:01:55"]

1. e4 {[%clk 0:03:00]}  e5 {[%clk 0:02:59]} 2. Nf3 {[%clk 0:03:01]}  Nc6 {[%clk 0:03:00]} 3. Bb5 {[%clk 0:03:01]}  g6 {[%clk 0:03:00]} 4. d4 {[%clk 0:02:58]}  exd4 {[%clk 0:03:01]} 5. Bg5 {[%clk 0:02:58]}  Be7 {[%clk 0:03:01]} 6. Bxe7 {[%clk 0:02:58]}  Qxe7 {[%clk 0:03:02]} 7. Bxc6 {[%clk 0:02:58]}  dxc6 {[%clk 0:03:02]} 8. Qxd4 {[%clk 0:02:58]}  Nf6 {[%clk 0:03:03]} 9. Nc3 {[%clk 0:02:58]}  c5 {[%clk 0:03:03]} 10. Qe3 {[%clk 0:02:58]}  Bg4 {[%clk 0:03:03]} 11. O-O-O {[%clk 0:02:55]}  O-O {[%clk 0:03:02]} 12. Nd5 {[%clk 0:02:29]}  Nxd5 {[%clk 0:03:00]} 13. Rxd5 {[%clk 0:02:29]}  b6 {[%clk 0:02:50]} 14. Rhd1 {[%clk 0:02:29]}  Rfe8 {[%clk 0:02:49]} 15. Re5 {[%clk 0:02:11]}  Qf6 {[%clk 0:02:39]} 16. Rxe8+ {[%clk 0:02:09]}  Rxe8 {[%clk 0:02:40]} 17. h3 {[%clk 0:02:05]}  Bxf3 {[%clk 0:02:40]} 18. Qxf3 {[%clk 0:02:03]}  Qxf3 {[%clk 0:02:39]} 19. gxf3 {[%clk 0:02:03]}  Re7 {[%clk 0:02:40]} 20. Rd8+ {[%clk 0:02:00]}  Kg7 {[%clk 0:02:39]} 21. Kd2 {[%clk 0:02:00]}  Kf6 {[%clk 0:02:35]} 22. Ke3 {[%clk 0:02:00]}  Kg5 {[%clk 0:02:35]} 23. Rd1 {[%clk 0:01:47]}  Kh4 {[%clk 0:02:31]} 24. Rh1 {[%clk 0:01:46]}  Rd7 {[%clk 0:02:31]} 25. f4 {[%clk 0:01:45]}  h5 {[%clk 0:02:24]} 26. e5 {[%clk 0:01:37]}  c4 {[%clk 0:02:22]} 27. f3 {[%clk 0:01:32]}  b5 {[%clk 0:02:20]} 28. a3 {[%clk 0:01:31]}  Kg3 {[%clk 0:02:19]} 29. h4 {[%clk 0:01:27]}  a5 {[%clk 0:02:16]} 30. Ke4 {[%clk 0:01:08]}  Rd2 {[%clk 0:02:12]} 31. f5 {[%clk 0:01:07]}  Re2+ {[%clk 0:02:13]} 32. Kd5 {[%clk 0:01:05]}  gxf5 {[%clk 0:02:09]} 33. Rg1+ {[%clk 0:01:04]}  Rg2 {[%clk 0:02:00]} 34. Rc1 {[%clk 0:00:55]}  Kxf3 {[%clk 0:01:59]} 35. Kc5 {[%clk 0:00:55]}  f4 {[%clk 0:01:56]} 36. Kxb5 {[%clk 0:00:54]}  Ke2 {[%clk 0:01:56]} 37. Kxa5 {[%clk 0:00:48]}  f3 {[%clk 0:01:56]} 38. c3 {[%clk 0:00:46]}  f2 {[%clk 0:01:56]} 39. Kb5 {[%clk 0:00:43]}  f1=Q {[%clk 0:01:56]} 40. Rxf1 {[%clk 0:00:43]}  Kxf1 {[%clk 0:01:57]} 41. a4 {[%clk 0:00:41]}  Rxb2+ {[%clk 0:01:57]} 42. Kxc4 {[%clk 0:00:42]}  Ra2 {[%clk 0:01:56]} 43. Kb5 {[%clk 0:00:42]}  Kg2 {[%clk 0:01:54]} 44. a5 {[%clk 0:00:42]}  Kg3 {[%clk 0:01:55]} 45. c4 {[%clk 0:00:41]}  Kxh4 {[%clk 0:01:55]} 46. c5 {[%clk 0:00:41]}  Kg5 {[%clk 0:01:55]} 47. a6 {[%clk 0:00:41]}  h4 {[%clk 0:01:54]} 48. Kc6 {[%clk 0:00:42]}  Rxa6+ {[%clk 0:01:54]} 49. Kxc7 {[%clk 0:00:42]}  h3 {[%clk 0:01:54]} 50. c6 {[%clk 0:00:42]}  h2 {[%clk 0:01:55]} 51. Kb7 {[%clk 0:00:43]}  Rxc6 {[%clk 0:01:54]} 52. Kxc6 {[%clk 0:00:41]}  h1=Q+ {[%clk 0:01:55]} 0-1

[Event "January 2 Early 2024"]
[Site "https://www.chess.com"]
[Date "2024.01.02"]
[Round "10"]
[White "Grycel, Kamil"]
[Black "Mohammadi, Melika"]
[Result "1-0"]
[Board "85"]
[TimeControl "180+1"]
[WhiteFideId "1115499"]
[BlackFideId "42529271"]
[WhiteElo "2603"]
[BlackElo "2475"]
[WhiteTeam "POL"]
[BlackTeam "IRI"]
[WhiteClock "0:00:08"]
[BlackClock "0:00:01"]

1. d4 {[%clk 0:02:57]}  d5 {[%clk 0:02:59]} 2. Bf4 {[%clk 0:02:56]}  Nf6 {[%clk 0:02:58]} 3. e3 {[%clk 0:02:56]}  c5 {[%clk 0:02:56]} 4. c3 {[%clk 0:02:56]}  Nc6 {[%clk 0:02:55]} 5. Nd2 {[%clk 0:02:56]}  cxd4 {[%clk 0:02:55]} 6. cxd4 {[%clk 0:02:55]}  Bf5 {[%clk 0:02:51]} 7. Rc1 {[%clk 0:02:52]}  e6 {[%clk 0:02:47]} 8. Ngf3 {[%clk 0:02:51]}  Bd6 {[%clk 0:02:45]} 9. Bg5 {[%clk 0:02:39]}  O-O {[%clk 0:02:33]} 10. Be2 {[%clk 0:02:27]}  Be7 {[%clk 0:02:30]} 11. a3 {[%clk 0:02:22]}  a5 {[%clk 0:02:27]} 12. Qa4 {[%clk 0:02:16]}  Qb6 {[%clk 0:02:22]} 13. Qb3 {[%clk 0:02:12]}  Qxb3 {[%clk 0:02:17]} 14. Nxb3 {[%clk 0:02:13]}  Rfc8 {[%clk 0:02:11]} 15. O-O {[%clk 0:02:09]}  Nd7 {[%clk 0:02:07]} 16. Bxe7 {[%clk 0:02:03]}  Nxe7 {[%clk 0:02:08]} 17. Rxc8+ {[%clk 0:01:51]}  Rxc8 {[%clk 0:02:07]} 18. Nxa5 {[%clk 0:01:47]}  Rc2 {[%clk 0:02:02]} 19. Bb5 {[%clk 0:01:44]}  Nc6 {[%clk 0:01:59]} 20. Nxb7 {[%clk 0:01:30]}  Nb6 {[%clk 0:01:43]} 21. Bxc6 {[%clk 0:01:14]}  Rxc6 {[%clk 0:01:43]} 22. Nc5 {[%clk 0:01:14]}  h6 {[%clk 0:01:37]} 23. b4 {[%clk 0:01:07]}  Nc4 {[%clk 0:01:35]} 24. Ra1 {[%clk 0:01:07]}  Rb6 {[%clk 0:01:31]} 25. h3 {[%clk 0:01:02]}  f6 {[%clk 0:01:32]} 26. Ne1 {[%clk 0:00:47]}  e5 {[%clk 0:01:22]} 27. Ned3 {[%clk 0:00:46]}  exd4 {[%clk 0:01:18]} 28. exd4 {[%clk 0:00:47]}  Nd2 {[%clk 0:01:16]} 29. Nf4 {[%clk 0:00:44]}  Rd6 {[%clk 0:01:03]} 30. a4 {[%clk 0:00:43]}  Nc4 {[%clk 0:01:02]} 31. a5 {[%clk 0:00:42]}  g5 {[%clk 0:01:02]} 32. Nfd3 {[%clk 0:00:42]}  Rd8 {[%clk 0:00:57]} 33. b5 {[%clk 0:00:36]}  Ra8 {[%clk 0:00:47]} 34. b6 {[%clk 0:00:29]}  Nxb6 {[%clk 0:00:44]} 35. Nb4 {[%clk 0:00:26]}  Nc4 {[%clk 0:00:38]} 36. Nxd5 {[%clk 0:00:20]}  Kf7 {[%clk 0:00:35]} 37. a6 {[%clk 0:00:18]}  Rd8 {[%clk 0:00:26]} 38. Ne3 {[%clk 0:00:15]}  Nxe3 {[%clk 0:00:17]} 39. fxe3 {[%clk 0:00:16]}  Be6 {[%clk 0:00:16]} 40. a7 {[%clk 0:00:15]}  Bd5 {[%clk 0:00:15]} 41. Rb1 {[%clk 0:00:12]}  Ke7 {[%clk 0:00:09]} 42. Rb8 {[%clk 0:00:11]}  Ba8 {[%clk 0:00:04]} 43. Na6 {[%clk 0:00:10]}  Be4 {[%clk 0:00:03]} 44. Nc7 {[%clk 0:00:10]}  Rd7 {[%clk 0:00:03]} 45. a8=Q {[%clk 0:00:06]}  Bxa8 {[%clk 0:00:03]} 46. Nxa8 {[%clk 0:00:06]}  Ra7 {[%clk 0:00:03]} 47. Nb6 {[%clk 0:00:06]}  Ra2 {[%clk 0:00:03]} 48. Rb7+ {[%clk 0:00:05]}  Ke6 {[%clk 0:00:02]} 49. d5+ {[%clk 0:00:06]}  Kd6 {[%clk 0:00:02]} 50. Rf7 {[%clk 0:00:05]}  Rb2 {[%clk 0:00:01]} 51. Rxf6+ {[%clk 0:00:05]}  Ke5 {[%clk 0:00:01]} 52. Re6+ {[%clk 0:00:05]}  Kf5 {[%clk 0:00:02]} 53. Rxh6 {[%clk 0:00:05]}  Rb1+ {[%clk 0:00:01]} 54. Kh2 {[%clk 0:00:06]}  Rb2 {[%clk 0:00:02]} 55. Nd7 {[%clk 0:00:06]}  Ke4 {[%clk 0:00:02]} 56. Nf6+ {[%clk 0:00:06]}  Kxe3 {[%clk 0:00:02]} 57. d6 {[%clk 0:00:06]}  Rd2 {[%clk 0:00:02]} 58. d7 {[%clk 0:00:07]}  Kf4 {[%clk 0:00:02]} 59. Rh8 {[%clk 0:00:07]}  Kf5 {[%clk 0:00:02]} 60. d8=Q {[%clk 0:00:07]}  Rxd8 {[%clk 0:00:03]} 61. Rxd8 {[%clk 0:00:08]}  Kxf6 {[%clk 0:00:01]} 62. Rd5 {[%clk 0:00:08]} 1-0

[Event "January 2 Early 2024"]
[Site "https://www.chess.com"]
[Date "2024.01.02"]
[Round "10"]
[White "Assylov, Miras"]
[Black "Travkina, Anastasia"]
[Result "1-0"]
[Board "86"]
[TimeControl "180+1"]
[WhiteFideId "13728873"]
[BlackFideId "24129151"]
[WhiteElo "2603"]
[BlackElo "2432"]
[WhiteTeam "KAZ"]
[BlackTeam "RUS"]
[WhiteClock "0:00:25"]
[BlackClock "0:00:36"]

1. Nf3 {[%clk 0:02:48]}  Nf6 {[%clk 0:02:59]} 2. g3 {[%clk 0:02:49]}  b5 {[%clk 0:03:00]} 3. Bg2 {[%clk 0:02:49]}  Bb7 {[%clk 0:03:01]} 4. O-O {[%clk 0:02:50]}  g6 {[%clk 0:03:01]} 5. a4 {[%clk 0:02:50]}  b4 {[%clk 0:03:01]} 6. b3 {[%clk 0:02:48]}  Bg7 {[%clk 0:03:00]} 7. Bb2 {[%clk 0:02:49]}  O-O {[%clk 0:03:00]} 8. c4 {[%clk 0:02:34]}  c5 {[%clk 0:02:55]} 9. d4 {[%clk 0:02:30]}  cxd4 {[%clk 0:02:50]} 10. Bxd4 {[%clk 0:02:15]}  d6 {[%clk 0:02:46]} 11. Nbd2 {[%clk 0:02:13]}  Nc6 {[%clk 0:02:41]} 12. Bb2 {[%clk 0:02:12]}  Na5 {[%clk 0:02:40]} 13. Rc1 {[%clk 0:02:05]}  Rc8 {[%clk 0:02:38]} 14. Rc2 {[%clk 0:02:02]}  Ne4 {[%clk 0:02:28]} 15. Bxg7 {[%clk 0:02:01]}  Kxg7 {[%clk 0:02:29]} 16. Nxe4 {[%clk 0:01:56]}  Nxb3 {[%clk 0:02:18]} 17. Rb2 {[%clk 0:01:46]}  Na5 {[%clk 0:02:01]} 18. Rxb4 {[%clk 0:01:35]}  Bxe4 {[%clk 0:01:54]} 19. Qd4+ {[%clk 0:01:33]}  e5 {[%clk 0:01:54]} 20. Qxe4 {[%clk 0:01:32]}  f5 {[%clk 0:01:51]} 21. Qd5 {[%clk 0:01:22]}  Rc5 {[%clk 0:01:47]} 22. Qd3 {[%clk 0:01:12]}  e4 {[%clk 0:01:40]} 23. Qc3+ {[%clk 0:01:11]}  Qf6 {[%clk 0:01:40]} 24. Nd4 {[%clk 0:00:58]}  Kg8 {[%clk 0:01:32]} 25. e3 {[%clk 0:00:53]}  d5 {[%clk 0:01:32]} 26. Rb5 {[%clk 0:00:49]}  Rxb5 {[%clk 0:01:20]} 27. cxb5 {[%clk 0:00:50]}  Nc4 {[%clk 0:01:20]} 28. Rc1 {[%clk 0:00:48]}  Qd6 {[%clk 0:01:15]} 29. Bf1 {[%clk 0:00:46]}  Rc8 {[%clk 0:01:02]} 30. Nc6 {[%clk 0:00:41]}  Nb6 {[%clk 0:00:49]} 31. a5 {[%clk 0:00:35]}  d4 {[%clk 0:00:36]} 32. Qb3+ {[%clk 0:00:25]} 1-0

[Event "January 2 Early 2024"]
[Site "https://www.chess.com"]
[Date "2024.01.02"]
[Round "10"]
[White "Namitbir Singh Walia"]
[Black "Mammadova, Narmin"]
[Result "0-1"]
[Board "87"]
[TimeControl "180+1"]
[WhiteFideId "35071068"]
[BlackFideId "13403710"]
[WhiteElo "2468"]
[BlackElo "2601"]
[WhiteTeam "IND"]
[BlackTeam "AZE"]
[WhiteClock "0:00:01"]
[BlackClock "0:00:19"]

1. e4 {[%clk 0:03:00]}  c6 {[%clk 0:02:58]} 2. d4 {[%clk 0:03:00]}  d5 {[%clk 0:02:59]} 3. Nc3 {[%clk 0:03:00]}  dxe4 {[%clk 0:02:59]} 4. Nxe4 {[%clk 0:03:01]}  Nf6 {[%clk 0:03:00]} 5. Nxf6+ {[%clk 0:03:01]}  exf6 {[%clk 0:03:01]} 6. c3 {[%clk 0:03:01]}  Bd6 {[%clk 0:03:00]} 7. Bd3 {[%clk 0:03:02]}  O-O {[%clk 0:02:59]} 8. Ne2 {[%clk 0:03:03]}  Re8 {[%clk 0:02:56]} 9. O-O {[%clk 0:03:03]}  Nd7 {[%clk 0:02:53]} 10. Ng3 {[%clk 0:02:59]}  Nf8 {[%clk 0:02:40]} 11. f4 {[%clk 0:02:58]}  Qc7 {[%clk 0:02:38]} 12. f5 {[%clk 0:02:57]}  Bxg3 {[%clk 0:02:28]} 13. hxg3 {[%clk 0:02:58]}  c5 {[%clk 0:02:26]} 14. Qg4 {[%clk 0:02:37]}  Kh8 {[%clk 0:02:21]} 15. Bf4 {[%clk 0:01:50]}  Qb6 {[%clk 0:02:19]} 16. Rae1 {[%clk 0:01:50]}  Bd7 {[%clk 0:02:14]} 17. dxc5 {[%clk 0:01:47]}  Qxc5+ {[%clk 0:02:12]} 18. Kh2 {[%clk 0:01:47]}  Rxe1 {[%clk 0:02:01]} 19. Rxe1 {[%clk 0:01:47]}  Re8 {[%clk 0:02:02]} 20. Rxe8 {[%clk 0:01:39]}  Bxe8 {[%clk 0:02:03]} 21. Qe2 {[%clk 0:01:39]}  Bd7 {[%clk 0:01:55]} 22. g4 {[%clk 0:01:34]}  h6 {[%clk 0:01:53]} 23. Bc4 {[%clk 0:01:25]}  Kg8 {[%clk 0:01:48]} 24. Qd3 {[%clk 0:01:21]}  Bc6 {[%clk 0:01:45]} 25. Bd6 {[%clk 0:01:18]}  Qf2 {[%clk 0:01:42]} 26. Qg3 {[%clk 0:00:29]}  Qxb2 {[%clk 0:01:16]} 27. Bxf8 {[%clk 0:00:26]}  Kxf8 {[%clk 0:01:17]} 28. Qb8+ {[%clk 0:00:27]}  Ke7 {[%clk 0:01:13]} 29. Qc7+ {[%clk 0:00:26]}  Bd7 {[%clk 0:01:10]} 30. Bxf7 {[%clk 0:00:17]}  Qd2 {[%clk 0:01:01]} 31. Be6 {[%clk 0:00:16]}  Qd6+ {[%clk 0:00:52]} 32. Qxd6+ {[%clk 0:00:14]}  Kxd6 {[%clk 0:00:53]} 33. Bb3 {[%clk 0:00:11]}  Ke5 {[%clk 0:00:48]} 34. Kg3 {[%clk 0:00:11]}  Bc6 {[%clk 0:00:44]} 35. Bf7 {[%clk 0:00:12]}  Ke4 {[%clk 0:00:41]} 36. Kh4 {[%clk 0:00:08]}  Kf4 {[%clk 0:00:29]} 37. g3+ {[%clk 0:00:08]}  Kf3 {[%clk 0:00:29]} 38. Kh5 {[%clk 0:00:04]}  Kxg3 {[%clk 0:00:27]} 39. Kg6 {[%clk 0:00:03]}  Kxg4 {[%clk 0:00:24]} 40. Be6 {[%clk 0:00:04]}  h5 {[%clk 0:00:19]} 41. Kxg7 {[%clk 0:00:03]}  Kg5 {[%clk 0:00:20]} 42. a3 {[%clk 0:00:02]}  h4 {[%clk 0:00:20]} 43. c4 {[%clk 0:00:01]}  h3 {[%clk 0:00:19]} 0-1